[Event "Early-Titled-Tuesday-Blitz-October-03-2023"]
[Site "Chess.com"]
[Date "2023.10.03"]
[Round "7"]
[White "N4700000"]
[Black "ferrufino64"]
[Result "1-0"]
[WhiteElo "2408"]
[BlackElo "2207"]
[TimeControl "180+1"]
[EndTime "9:18:11 PDT"]
[Termination "N4700000 won by resignation"]

1. e4 {[%clk 0:03:00.9]} 1... c5 {[%clk 0:02:54]} 2. Nf3 {[%clk 0:03:00.4]} 2...
d6 {[%clk 0:02:53.7]} 3. Bb5+ {[%clk 0:02:59]} 3... Bd7 {[%clk 0:02:53.6]} 4. c4
{[%clk 0:02:54.1]} 4... e5 {[%clk 0:02:51.8]} 5. Nc3 {[%clk 0:02:50.6]} 5... Nc6
{[%clk 0:02:46.7]} 6. O-O {[%clk 0:02:47.2]} 6... Nge7 {[%clk 0:02:45]} 7. d3
{[%clk 0:02:45.4]} 7... g6 {[%clk 0:02:44.8]} 8. Nd5 {[%clk 0:02:36.4]} 8...
Nxd5 {[%clk 0:02:43.3]} 9. cxd5 {[%clk 0:02:30.3]} 9... Ne7 {[%clk 0:02:42.1]}
10. a4 {[%clk 0:02:17.9]} 10... Bg7 {[%clk 0:02:40.7]} 11. Nd2 {[%clk 0:02:17]}
11... O-O {[%clk 0:02:40.3]} 12. Nc4 {[%clk 0:02:16.5]} 12... Bc8 {[%clk
0:02:37]} 13. a5 {[%clk 0:02:15.1]} 13... Nf5 {[%clk 0:02:34.9]} 14. exf5 {[%clk
0:02:08.5]} 14... gxf5 {[%clk 0:02:29]} 15. f4 {[%clk 0:02:00]} 15... Kh8 {[%clk
0:02:27.4]} 16. Kh1 {[%clk 0:01:51.8]} 16... Rg8 {[%clk 0:02:26.4]} 17. Qh5
{[%clk 0:01:51.2]} 17... Qf6 {[%clk 0:02:22.5]} 18. fxe5 {[%clk 0:01:42]} 18...
dxe5 {[%clk 0:02:21.4]} 19. Bg5 {[%clk 0:01:41.8]} 19... Qg6 {[%clk 0:02:17.2]}
20. Qxg6 {[%clk 0:01:41.7]} 20... fxg6 {[%clk 0:02:17.2]} 21. d6 {[%clk
0:01:36.7]} 21... Be6 {[%clk 0:02:16.7]} 22. a6 {[%clk 0:01:24.2]} 22... b6
{[%clk 0:02:13.7]} 23. Rae1 {[%clk 0:01:20.5]} 23... h6 {[%clk 0:02:11.5]} 24.
Be7 {[%clk 0:01:19.2]} 24... Bxc4 {[%clk 0:02:00.6]} 25. Bxc4 {[%clk 0:01:08]}
25... Rgd8 {[%clk 0:02:00.6]} 26. g4 {[%clk 0:01:03.6]} 26... f4 {[%clk
0:01:57]} 27. h4 {[%clk 0:00:57.3]} 27... Rab8 {[%clk 0:01:51.4]} 28. Bd5 {[%clk
0:00:48.2]} 28... Kh7 {[%clk 0:01:43.8]} 29. Be4 {[%clk 0:00:47.4]} 29... Bf8
{[%clk 0:01:41]} 30. h5 {[%clk 0:00:43.8]} 30... Bg7 {[%clk 0:01:36.4]} 31.
hxg6+ {[%clk 0:00:38.7]} 31... Kg8 {[%clk 0:01:36.5]} 32. Bd5+ {[%clk 0:00:38]}
32... Kh8 {[%clk 0:01:36.9]} 33. Kg2 {[%clk 0:00:37.9]} 33... b5 {[%clk
0:01:35.2]} 34. g5 {[%clk 0:00:37.2]} 34... c4 {[%clk 0:01:32.7]} 35. Rh1 {[%clk
0:00:35.9]} 35... Rxd6 {[%clk 0:01:26.7]} 36. Bxd6 {[%clk 0:00:35.1]} 36... Rb6
{[%clk 0:01:27.1]} 37. Bxe5 {[%clk 0:00:29.7]} 37... Rxg6 {[%clk 0:01:27.3]} 38.
Rxh6+ {[%clk 0:00:27.5]} 38... Rxh6 {[%clk 0:01:25.2]} 39. gxh6 {[%clk
0:00:28.4]} 39... Bxe5 {[%clk 0:01:26.1]} 40. Rxe5 {[%clk 0:00:27.4]} 40... cxd3
{[%clk 0:01:27]} 1-0

[Event "Early-Titled-Tuesday-Blitz-October-03-2023"]
[Site "Chess.com"]
[Date "2023.10.03"]
[Round "7"]
[White "emeli_chess"]
[Black "Aariow"]
[Result "1-0"]
[WhiteElo "2362"]
[BlackElo "2476"]
[TimeControl "180+1"]
[EndTime "9:18:13 PDT"]
[Termination "emeli_chess won on time"]

1. d4 {[%clk 0:03:00.9]} 1... d5 {[%clk 0:02:48.7]} 2. c4 {[%clk 0:03:00]} 2...
e6 {[%clk 0:02:49.3]} 3. Nc3 {[%clk 0:02:59.9]} 3... Nf6 {[%clk 0:02:50]} 4.
cxd5 {[%clk 0:03:00.2]} 4... exd5 {[%clk 0:02:50.2]} 5. Bg5 {[%clk 0:03:00.8]}
5... Nbd7 {[%clk 0:02:50.4]} 6. e3 {[%clk 0:03:00.4]} 6... c6 {[%clk 0:02:50.8]}
7. Bd3 {[%clk 0:03:00.2]} 7... Be7 {[%clk 0:02:51.7]} 8. Nf3 {[%clk 0:03:00]}
8... O-O {[%clk 0:02:52.5]} 9. O-O {[%clk 0:03:00.3]} 9... Re8 {[%clk
0:02:53.2]} 10. h3 {[%clk 0:03:00.1]} 10... Ne4 {[%clk 0:02:46]} 11. Bxe4 {[%clk
0:02:51.6]} 11... Bxg5 {[%clk 0:02:44.8]} 12. Bd3 {[%clk 0:02:50.7]} 12... Be7
{[%clk 0:02:42.3]} 13. Rb1 {[%clk 0:02:48.8]} 13... Nb6 {[%clk 0:02:29.4]} 14.
b4 {[%clk 0:02:45.2]} 14... Be6 {[%clk 0:02:30]} 15. b5 {[%clk 0:02:40.5]} 15...
c5 {[%clk 0:02:28.5]} 16. dxc5 {[%clk 0:02:39]} 16... Bxc5 {[%clk 0:02:29.4]}
17. Nd4 {[%clk 0:02:30.8]} 17... Bxd4 {[%clk 0:02:18.2]} 18. exd4 {[%clk
0:02:30.7]} 18... Qh4 {[%clk 0:02:13.3]} 19. Ne2 {[%clk 0:02:25.5]} 19... Rac8
{[%clk 0:02:04.6]} 20. Qd2 {[%clk 0:02:24.6]} 20... Nc4 {[%clk 0:01:58]} 21.
Bxc4 {[%clk 0:02:24.7]} 21... Rxc4 {[%clk 0:01:50.6]} 22. Rfd1 {[%clk
0:02:15.1]} 22... Bf5 {[%clk 0:01:35.4]} 23. Rbc1 {[%clk 0:02:07.1]} 23... Ra4
{[%clk 0:01:09.6]} 24. Qf4 {[%clk 0:01:55.9]} 24... Qf6 {[%clk 0:00:36.9]} 25.
Nc3 {[%clk 0:01:50.4]} 25... g5 {[%clk 0:00:15.5]} 26. Nxd5 {[%clk 0:01:40.7]}
26... Qe6 {[%clk 0:00:06.5]} 27. Qxg5+ {[%clk 0:01:39.1]} 27... Kh8 {[%clk
0:00:02.2]} 28. Nc7 {[%clk 0:01:35.7]} 28... Qe7 {[%clk 0:00:02.3]} 29. Qxf5
{[%clk 0:01:29]} 29... Rg8 {[%clk 0:00:02.1]} 30. Qe5+ {[%clk 0:01:27]} 1-0

[Event "Early-Titled-Tuesday-Blitz-October-03-2023"]
[Site "Chess.com"]
[Date "2023.10.03"]
[Round "7"]
[White "MrVenky"]
[Black "Hasangatin_Ramil"]
[Result "0-1"]
[WhiteElo "2551"]
[BlackElo "2741"]
[TimeControl "180+1"]
[EndTime "9:18:18 PDT"]
[Termination "Hasangatin_Ramil won by resignation"]

1. e4 {[%clk 0:03:00.9]} 1... d5 {[%clk 0:02:59.4]} 2. exd5 {[%clk 0:03:00.6]}
2... Qxd5 {[%clk 0:03:00.3]} 3. Nc3 {[%clk 0:03:00.6]} 3... Qd6 {[%clk
0:03:00.5]} 4. d4 {[%clk 0:02:59.1]} 4... Nf6 {[%clk 0:03:01.1]} 5. Nf3 {[%clk
0:02:59.1]} 5... c6 {[%clk 0:03:01.7]} 6. g3 {[%clk 0:02:58.9]} 6... Bg4 {[%clk
0:03:01.3]} 7. Bg2 {[%clk 0:02:58.6]} 7... e6 {[%clk 0:03:01.6]} 8. Bf4 {[%clk
0:02:30.2]} 8... Qd8 {[%clk 0:03:00.6]} 9. h3 {[%clk 0:02:28.7]} 9... Bxf3
{[%clk 0:02:52.9]} 10. Qxf3 {[%clk 0:02:27.4]} 10... Bd6 {[%clk 0:02:53.2]} 11.
O-O-O {[%clk 0:02:12.2]} 11... Bxf4+ {[%clk 0:02:48.2]} 12. Qxf4 {[%clk
0:02:12.2]} 12... Nbd7 {[%clk 0:02:48.7]} 13. Kb1 {[%clk 0:02:00.2]} 13... O-O
{[%clk 0:02:46.6]} 14. g4 {[%clk 0:01:58.9]} 14... Nd5 {[%clk 0:02:44.7]} 15.
Qg3 {[%clk 0:01:53.7]} 15... Nxc3+ {[%clk 0:02:42]} 16. Qxc3 {[%clk 0:01:52.8]}
16... Nb6 {[%clk 0:02:42.9]} 17. h4 {[%clk 0:01:52.2]} 17... Nd5 {[%clk
0:02:42.9]} 18. Qg3 {[%clk 0:01:46.6]} 18... Qb8 {[%clk 0:02:42.1]} 19. g5
{[%clk 0:01:41.2]} 19... Qxg3 {[%clk 0:02:41.3]} 20. fxg3 {[%clk 0:01:41.5]}
20... b5 {[%clk 0:02:38]} 21. Rhe1 {[%clk 0:01:37.1]} 21... a5 {[%clk
0:02:37.6]} 22. c3 {[%clk 0:01:32.9]} 22... a4 {[%clk 0:02:37.3]} 23. a3 {[%clk
0:01:29]} 23... Rfd8 {[%clk 0:02:35]} 24. Kc2 {[%clk 0:01:27.4]} 24... Rd6
{[%clk 0:02:34.9]} 25. Re5 {[%clk 0:01:23.7]} 25... g6 {[%clk 0:02:34.5]} 26. h5
{[%clk 0:01:17.1]} 26... Kg7 {[%clk 0:02:30.6]} 27. Rh1 {[%clk 0:01:14.2]} 27...
Rad8 {[%clk 0:02:30.2]} 28. h6+ {[%clk 0:01:02.3]} 28... Kf8 {[%clk 0:02:27.7]}
29. Rf1 {[%clk 0:00:58]} 29... Ke7 {[%clk 0:02:27.5]} 30. Re2 {[%clk 0:00:49.4]}
30... Rf8 {[%clk 0:02:18.2]} 31. Kd3 {[%clk 0:00:41.9]} 31... Rdd8 {[%clk
0:02:15.5]} 32. Be4 {[%clk 0:00:37.6]} 32... Kd6 {[%clk 0:02:06.2]} 33. Ref2
{[%clk 0:00:36.1]} 33... Rd7 {[%clk 0:02:01.9]} 34. Rf3 {[%clk 0:00:22]} 34...
Nb6 {[%clk 0:02:00]} 35. Kc2 {[%clk 0:00:20.8]} 35... Nc4 {[%clk 0:02:00.2]} 36.
g4 {[%clk 0:00:20.1]} 36... Re7 {[%clk 0:01:56]} 37. Rf6 {[%clk 0:00:18.8]}
37... Ne3+ {[%clk 0:01:52.6]} 38. Kd3 {[%clk 0:00:18.3]} 38... Nxf1 {[%clk
0:01:52.8]} 39. Rxf1 {[%clk 0:00:17.5]} 39... c5 {[%clk 0:01:51.3]} 0-1

[Event "Early-Titled-Tuesday-Blitz-October-03-2023"]
[Site "Chess.com"]
[Date "2023.10.03"]
[Round "7"]
[White "GalaxyRoman"]
[Black "santosalberto1987"]
[Result "1-0"]
[WhiteElo "2720"]
[BlackElo "2493"]
[TimeControl "180+1"]
[EndTime "9:18:19 PDT"]
[Termination "GalaxyRoman won by resignation"]

1. e4 {[%clk 0:03:00.9]} 1... e6 {[%clk 0:02:59.3]} 2. Nc3 {[%clk 0:02:58.6]}
2... d5 {[%clk 0:02:59.5]} 3. d4 {[%clk 0:02:58.7]} 3... Nf6 {[%clk 0:02:59.4]}
4. e5 {[%clk 0:02:57]} 4... Nfd7 {[%clk 0:02:59.7]} 5. f4 {[%clk 0:02:57.1]}
5... c5 {[%clk 0:03:00.1]} 6. Nf3 {[%clk 0:02:56.9]} 6... Nc6 {[%clk 0:03:00.6]}
7. Be3 {[%clk 0:02:56.2]} 7... Qb6 {[%clk 0:03:00.8]} 8. Na4 {[%clk 0:02:54]}
8... Qa5+ {[%clk 0:03:00.9]} 9. c3 {[%clk 0:02:49.9]} 9... b6 {[%clk 0:03:01.1]}
10. Be2 {[%clk 0:02:25]} 10... Ba6 {[%clk 0:03:00.7]} 11. Bxa6 {[%clk
0:02:15.6]} 11... Qxa6 {[%clk 0:03:01.6]} 12. b3 {[%clk 0:02:12.1]} 12... Be7
{[%clk 0:02:58.8]} 13. Qe2 {[%clk 0:02:03.8]} 13... Qxe2+ {[%clk 0:02:57.9]} 14.
Kxe2 {[%clk 0:02:04.7]} 14... O-O {[%clk 0:02:52.2]} 15. a3 {[%clk 0:01:59.2]}
15... cxd4 {[%clk 0:02:45.1]} 16. Nxd4 {[%clk 0:01:49.7]} 16... Rfc8 {[%clk
0:02:37.7]} 17. b4 {[%clk 0:01:42.1]} 17... Nxd4+ {[%clk 0:02:32]} 18. Bxd4
{[%clk 0:01:42.9]} 18... b5 {[%clk 0:02:16]} 19. Nb2 {[%clk 0:01:42.8]} 19...
Nb6 {[%clk 0:02:16.3]} 20. a4 {[%clk 0:01:38]} 20... Nc4 {[%clk 0:02:04.6]} 21.
Nxc4 {[%clk 0:01:26.2]} 21... bxc4 {[%clk 0:02:01.3]} 22. Rhb1 {[%clk
0:01:26.4]} 22... a6 {[%clk 0:01:59.8]} 23. b5 {[%clk 0:01:18.9]} 23... axb5
{[%clk 0:01:59.8]} 24. axb5 {[%clk 0:01:19.8]} 24... Rab8 {[%clk 0:01:45.3]} 25.
b6 {[%clk 0:01:14.1]} 25... Rb7 {[%clk 0:01:28.4]} 26. Ra7 {[%clk 0:01:12.6]}
26... Rcb8 {[%clk 0:01:26]} 27. Rxb7 {[%clk 0:01:11.7]} 27... Rxb7 {[%clk
0:01:26.1]} 28. Ra1 {[%clk 0:01:12.3]} 28... Rb8 {[%clk 0:01:10.1]} 29. b7
{[%clk 0:01:03.9]} 29... Rxb7 {[%clk 0:00:50.8]} 30. Ra8+ {[%clk 0:01:03]} 30...
Bf8 {[%clk 0:00:51.4]} 31. Bc5 {[%clk 0:01:03.4]} 31... Rb2+ {[%clk 0:00:49.6]}
32. Kf3 {[%clk 0:01:03.2]} 32... h6 {[%clk 0:00:49.7]} 33. Rxf8+ {[%clk
0:01:03]} 33... Kh7 {[%clk 0:00:50.6]} 34. Rxf7 {[%clk 0:01:02.8]} 34... Rc2
{[%clk 0:00:50.3]} 35. Bd4 {[%clk 0:01:02.9]} 1-0

[Event "Early-Titled-Tuesday-Blitz-October-03-2023"]
[Site "Chess.com"]
[Date "2023.10.03"]
[Round "7"]
[White "gtnamfrq"]
[Black "Vesper2018"]
[Result "0-1"]
[WhiteElo "2416"]
[BlackElo "2580"]
[TimeControl "180+1"]
[EndTime "9:18:20 PDT"]
[Termination "Vesper2018 won by resignation"]

1. e4 {[%clk 0:03:00.9]} 1... c5 {[%clk 0:02:59.6]} 2. Nf3 {[%clk 0:03:00.7]}
2... d6 {[%clk 0:03:00.1]} 3. d4 {[%clk 0:03:01.3]} 3... cxd4 {[%clk 0:03:00.6]}
4. Nxd4 {[%clk 0:03:02.2]} 4... Nf6 {[%clk 0:03:01.1]} 5. Nc3 {[%clk 0:03:02.8]}
5... a6 {[%clk 0:03:01.7]} 6. h3 {[%clk 0:03:03.4]} 6... e5 {[%clk 0:03:01.3]}
7. Nde2 {[%clk 0:03:03.9]} 7... h5 {[%clk 0:03:01.6]} 8. Bg5 {[%clk 0:03:03.1]}
8... Be6 {[%clk 0:03:01.6]} 9. Bxf6 {[%clk 0:03:02.9]} 9... Qxf6 {[%clk
0:03:00.6]} 10. Nd5 {[%clk 0:03:03.6]} 10... Qd8 {[%clk 0:03:00.7]} 11. g3
{[%clk 0:03:00.9]} 11... g6 {[%clk 0:02:55.5]} 12. Bg2 {[%clk 0:03:00.4]} 12...
Bg7 {[%clk 0:02:55.6]} 13. Qd3 {[%clk 0:02:57]} 13... Nd7 {[%clk 0:02:49.2]} 14.
Nec3 {[%clk 0:02:27.4]} 14... Nc5 {[%clk 0:02:48.1]} 15. Qe2 {[%clk 0:02:27.7]}
15... O-O {[%clk 0:02:45.9]} 16. O-O {[%clk 0:02:21.4]} 16... Bd7 {[%clk
0:02:39.1]} 17. Rfd1 {[%clk 0:02:12.3]} 17... Ne6 {[%clk 0:02:38.8]} 18. Qe3
{[%clk 0:01:56.3]} 18... Nd4 {[%clk 0:02:36.7]} 19. Rac1 {[%clk 0:01:38.1]}
19... Rc8 {[%clk 0:02:36.3]} 20. Rd2 {[%clk 0:01:17.2]} 20... Kh7 {[%clk
0:02:27.4]} 21. Ne2 {[%clk 0:01:00.5]} 21... Ne6 {[%clk 0:02:11.4]} 22. c3
{[%clk 0:00:30.2]} 22... f5 {[%clk 0:02:04.6]} 23. exf5 {[%clk 0:00:27]} 23...
gxf5 {[%clk 0:02:04.3]} 24. f4 {[%clk 0:00:18.9]} 24... h4 {[%clk 0:01:42.7]}
25. fxe5 {[%clk 0:00:17.7]} 25... dxe5 {[%clk 0:01:40.1]} 26. Nb6 {[%clk
0:00:18.2]} 26... Bh6 {[%clk 0:01:36.9]} 27. Qxh6+ {[%clk 0:00:16.8]} 27... Kxh6
{[%clk 0:01:35.6]} 28. Rxd7 {[%clk 0:00:16.6]} 28... Qxb6+ {[%clk 0:01:35.1]}
29. Kh2 {[%clk 0:00:16.1]} 29... Rcd8 {[%clk 0:01:32.4]} 30. Re7 {[%clk
0:00:14.2]} 30... Rd6 {[%clk 0:01:25.4]} 31. gxh4 {[%clk 0:00:11.9]} 31... Qf2
{[%clk 0:01:25.3]} 32. Ng3 {[%clk 0:00:11.1]} 32... Rg8 {[%clk 0:01:24.3]} 33.
Nxf5+ {[%clk 0:00:06.1]} 33... Qxf5 {[%clk 0:01:24.4]} 0-1

[Event "Early-Titled-Tuesday-Blitz-October-03-2023"]
[Site "Chess.com"]
[Date "2023.10.03"]
[Round "7"]
[White "SAInt_666"]
[Black "OchsenfroschGambit"]
[Result "0-1"]
[WhiteElo "2642"]
[BlackElo "2512"]
[TimeControl "180+1"]
[EndTime "9:18:27 PDT"]
[Termination "OchsenfroschGambit won by resignation"]

1. e4 {[%clk 0:03:00.9]} 1... c5 {[%clk 0:02:59.2]} 2. Nf3 {[%clk 0:03:00.6]}
2... e6 {[%clk 0:02:59.7]} 3. c3 {[%clk 0:03:00.5]} 3... Nf6 {[%clk 0:02:59.1]}
4. e5 {[%clk 0:03:01]} 4... Nd5 {[%clk 0:02:59.5]} 5. Bc4 {[%clk 0:03:01.6]}
5... d6 {[%clk 0:02:54.8]} 6. d4 {[%clk 0:03:01.1]} 6... cxd4 {[%clk 0:02:55.4]}
7. cxd4 {[%clk 0:03:02]} 7... Be7 {[%clk 0:02:55]} 8. O-O {[%clk 0:03:01.9]}
8... O-O {[%clk 0:02:55]} 9. Qe2 {[%clk 0:03:02.6]} 9... b6 {[%clk 0:02:54.3]}
10. Rd1 {[%clk 0:03:00.7]} 10... Bb7 {[%clk 0:02:49.2]} 11. Bxd5 {[%clk
0:03:00.6]} 11... exd5 {[%clk 0:02:34.9]} 12. Nc3 {[%clk 0:02:58.5]} 12... Na6
{[%clk 0:02:34.9]} 13. Bf4 {[%clk 0:02:54.7]} 13... Nc7 {[%clk 0:02:33]} 14.
Rac1 {[%clk 0:02:48.8]} 14... Ne6 {[%clk 0:02:26.4]} 15. Bg3 {[%clk 0:02:48]}
15... a6 {[%clk 0:02:19.2]} 16. a3 {[%clk 0:02:35.2]} 16... Rc8 {[%clk
0:02:17.6]} 17. Qe3 {[%clk 0:02:21.2]} 17... Qd7 {[%clk 0:02:06.8]} 18. h4
{[%clk 0:02:09.5]} 18... Rc4 {[%clk 0:01:58.6]} 19. h5 {[%clk 0:02:04.5]} 19...
h6 {[%clk 0:01:58]} 20. exd6 {[%clk 0:02:04.4]} 20... Bxd6 {[%clk 0:01:56.7]}
21. Bxd6 {[%clk 0:02:01.9]} 21... Qxd6 {[%clk 0:01:57.6]} 22. Ne5 {[%clk
0:01:52.3]} 22... Rc7 {[%clk 0:01:56.1]} 23. Ne2 {[%clk 0:01:49.4]} 23... Rfc8
{[%clk 0:01:48.2]} 24. Rc3 {[%clk 0:01:41.2]} 24... a5 {[%clk 0:01:31.8]} 25.
Rdc1 {[%clk 0:01:40.6]} 25... Ba6 {[%clk 0:01:29.8]} 26. Rxc7 {[%clk 0:01:33.6]}
26... Rxc7 {[%clk 0:01:30.7]} 27. Rxc7 {[%clk 0:01:33.8]} 27... Qxc7 {[%clk
0:01:29.1]} 28. Nc3 {[%clk 0:01:34.4]} 28... Qd6 {[%clk 0:01:20.7]} 29. g3
{[%clk 0:01:32]} 29... b5 {[%clk 0:01:15.4]} 30. Ne2 {[%clk 0:01:21]} 30... b4
{[%clk 0:01:14.3]} 31. axb4 {[%clk 0:01:15]} 31... Bxe2 {[%clk 0:01:10]} 32.
Qxe2 {[%clk 0:00:56.6]} 32... Nxd4 {[%clk 0:01:10]} 33. Qe3 {[%clk 0:00:57.1]}
33... Qxe5 {[%clk 0:01:06.6]} 34. Qxe5 {[%clk 0:00:54.7]} 34... Nf3+ {[%clk
0:01:06.6]} 35. Kf1 {[%clk 0:00:54.6]} 35... Nxe5 {[%clk 0:01:07.5]} 36. bxa5
{[%clk 0:00:55.4]} 36... Nc6 {[%clk 0:01:04.3]} 37. a6 {[%clk 0:00:54.8]} 37...
Kf8 {[%clk 0:00:55.9]} 38. Ke2 {[%clk 0:00:54.9]} 38... Ke7 {[%clk 0:00:55.3]}
39. b4 {[%clk 0:00:55.1]} 39... Kd6 {[%clk 0:00:53.2]} 40. b5 {[%clk 0:00:52]}
40... Nd4+ {[%clk 0:00:52.7]} 0-1

[Event "Early-Titled-Tuesday-Blitz-October-03-2023"]
[Site "Chess.com"]
[Date "2023.10.03"]
[Round "7"]
[White "KatakuriDono"]
[Black "ExchangeAB"]
[Result "0-1"]
[WhiteElo "2328"]
[BlackElo "2489"]
[TimeControl "180+1"]
[EndTime "9:18:34 PDT"]
[Termination "ExchangeAB won by resignation"]

1. d4 {[%clk 0:03:00.9]} 1... d5 {[%clk 0:02:59.5]} 2. c4 {[%clk 0:03:01.2]}
2... c6 {[%clk 0:02:59.3]} 3. Nc3 {[%clk 0:03:01.4]} 3... Nf6 {[%clk 0:02:59.6]}
4. cxd5 {[%clk 0:03:01.8]} 4... cxd5 {[%clk 0:02:59.9]} 5. Bg5 {[%clk
0:03:01.8]} 5... Ne4 {[%clk 0:02:57.3]} 6. Nxe4 {[%clk 0:03:00.6]} 6... dxe4
{[%clk 0:02:57.7]} 7. a3 {[%clk 0:03:01]} 7... Qd5 {[%clk 0:02:57]} 8. Bh4
{[%clk 0:03:00.9]} 8... Nc6 {[%clk 0:02:51.7]} 9. e3 {[%clk 0:03:00.5]} 9...
Qa5+ {[%clk 0:02:33.6]} 10. Qd2 {[%clk 0:02:57.1]} 10... Qxd2+ {[%clk
0:02:33.5]} 11. Kxd2 {[%clk 0:02:58]} 11... e5 {[%clk 0:02:26.6]} 12. d5 {[%clk
0:02:53.7]} 12... Ne7 {[%clk 0:02:22.9]} 13. Bc4 {[%clk 0:02:51.7]} 13... Nf5
{[%clk 0:02:20.7]} 14. Bg3 {[%clk 0:02:45.3]} 14... Nd6 {[%clk 0:02:20.3]} 15.
Bb3 {[%clk 0:02:33.9]} 15... f6 {[%clk 0:02:19.5]} 16. Ne2 {[%clk 0:02:32.8]}
16... Bd7 {[%clk 0:02:15]} 17. Rac1 {[%clk 0:02:31.4]} 17... Kd8 {[%clk
0:02:13.4]} 18. Rc2 {[%clk 0:02:16.4]} 18... Rc8 {[%clk 0:02:13]} 19. Rxc8+
{[%clk 0:02:12.6]} 19... Kxc8 {[%clk 0:02:07.1]} 20. Rc1+ {[%clk 0:02:12.2]}
20... Kd8 {[%clk 0:02:05]} 21. f4 {[%clk 0:01:59.2]} 21... exf3 {[%clk
0:02:00.1]} 22. gxf3 {[%clk 0:01:59.5]} 22... g6 {[%clk 0:01:37.2]} 23. Bh4
{[%clk 0:01:48]} 23... Be7 {[%clk 0:01:18.7]} 24. e4 {[%clk 0:01:40.2]} 24... f5
{[%clk 0:01:15.6]} 25. Bxe7+ {[%clk 0:01:37.9]} 25... Kxe7 {[%clk 0:01:16.5]}
26. exf5 {[%clk 0:01:29.7]} 26... gxf5 {[%clk 0:01:16.2]} 27. Ng3 {[%clk
0:01:14.1]} 27... Rg8 {[%clk 0:01:13.5]} 28. Rc7 {[%clk 0:01:12.9]} 28... Kd8
{[%clk 0:01:09.9]} 29. Rc1 {[%clk 0:01:12.2]} 29... f4 {[%clk 0:01:06.8]} 30.
Ne4 {[%clk 0:01:06.5]} 30... Nxe4+ {[%clk 0:01:06.2]} 31. fxe4 {[%clk
0:01:06.2]} 31... Rg2+ {[%clk 0:01:04.7]} 32. Kd3 {[%clk 0:01:04.7]} 32... Rxb2
{[%clk 0:01:04]} 33. Bc4 {[%clk 0:00:57.4]} 33... b5 {[%clk 0:00:52.7]} 34. d6
{[%clk 0:00:50.2]} 34... bxc4+ {[%clk 0:00:51.1]} 35. Kxc4 {[%clk 0:00:51]}
35... Be6+ {[%clk 0:00:41.6]} 36. Kc5 {[%clk 0:00:49.3]} 36... Kd7 {[%clk
0:00:41.4]} 37. Rg1 {[%clk 0:00:45.4]} 37... Rc2+ {[%clk 0:00:41.5]} 38. Kb4
{[%clk 0:00:45.5]} 38... Kxd6 {[%clk 0:00:41.5]} 0-1

[Event "Early-Titled-Tuesday-Blitz-October-03-2023"]
[Site "Chess.com"]
[Date "2023.10.03"]
[Round "7"]
[White "MatthewG-p4p"]
[Black "Oleksandr_Bortnyk"]
[Result "0-1"]
[WhiteElo "2834"]
[BlackElo "3011"]
[TimeControl "180+1"]
[EndTime "9:18:36 PDT"]
[Termination "Oleksandr_Bortnyk won by resignation"]

1. e4 {[%clk 0:02:59.9]} 1... Nf6 {[%clk 0:02:57.9]} 2. e5 {[%clk 0:03:00.1]}
2... Nd5 {[%clk 0:02:58.3]} 3. d4 {[%clk 0:03:00.8]} 3... d6 {[%clk 0:02:58.6]}
4. Nf3 {[%clk 0:03:01.6]} 4... dxe5 {[%clk 0:02:59]} 5. Nxe5 {[%clk 0:03:02.5]}
5... c6 {[%clk 0:02:59.6]} 6. Be2 {[%clk 0:03:02.8]} 6... Bf5 {[%clk 0:02:59.1]}
7. O-O {[%clk 0:03:02.6]} 7... Nd7 {[%clk 0:02:59.4]} 8. Nf3 {[%clk 0:03:03.4]}
8... e6 {[%clk 0:02:59.8]} 9. c4 {[%clk 0:03:04]} 9... N5f6 {[%clk 0:03:00.5]}
10. Nh4 {[%clk 0:03:02.8]} 10... Bg6 {[%clk 0:02:59]} 11. Nc3 {[%clk 0:03:01.8]}
11... Bd6 {[%clk 0:02:59.2]} 12. g3 {[%clk 0:03:01.5]} 12... O-O {[%clk
0:02:58.8]} 13. Re1 {[%clk 0:03:00.6]} 13... e5 {[%clk 0:02:51.5]} 14. Be3
{[%clk 0:02:54]} 14... exd4 {[%clk 0:02:50.3]} 15. Bxd4 {[%clk 0:02:54]} 15...
Qc7 {[%clk 0:02:47.6]} 16. Nxg6 {[%clk 0:02:50]} 16... hxg6 {[%clk 0:02:48.5]}
17. Qc2 {[%clk 0:02:49.4]} 17... Be5 {[%clk 0:02:42.8]} 18. Be3 {[%clk 0:02:46]}
18... Rfe8 {[%clk 0:02:43.1]} 19. Rad1 {[%clk 0:02:45.6]} 19... Qa5 {[%clk
0:02:39.9]} 20. Bd2 {[%clk 0:02:12.3]} 20... Bd4 {[%clk 0:02:19.6]} 21. Nd5
{[%clk 0:01:07.7]} 21... Qd8 {[%clk 0:01:39.2]} 22. Be3 {[%clk 0:00:53]} 22...
Bxe3 {[%clk 0:01:29]} 23. Nxe3 {[%clk 0:00:53.9]} 23... Qb6 {[%clk 0:01:24.7]}
24. Bf3 {[%clk 0:00:53.8]} 24... a5 {[%clk 0:01:21.5]} 25. h3 {[%clk 0:00:52.4]}
25... a4 {[%clk 0:01:18]} 26. Qc3 {[%clk 0:00:47.8]} 26... Qc5 {[%clk
0:01:08.8]} 27. b4 {[%clk 0:00:43.7]} 27... axb3 {[%clk 0:01:03.2]} 28. axb3
{[%clk 0:00:44.6]} 28... Ra3 {[%clk 0:00:56.9]} 29. Nc2 {[%clk 0:00:44.5]} 29...
Rxe1+ {[%clk 0:00:55.8]} 30. Rxe1 {[%clk 0:00:45.4]} 30... Ra2 {[%clk
0:00:54.6]} 31. b4 {[%clk 0:00:43.1]} 31... Qf5 {[%clk 0:00:51.9]} 32. Nd4
{[%clk 0:00:34.3]} 32... Qxh3 {[%clk 0:00:52]} 33. Bg2 {[%clk 0:00:34.5]} 33...
Qh6 {[%clk 0:00:44.4]} 34. Qb3 {[%clk 0:00:31.6]} 34... Qd2 {[%clk 0:00:40.4]}
35. Nf3 {[%clk 0:00:31.3]} 35... Qxf2+ {[%clk 0:00:40.4]} 0-1